[Event "Live Chess"]
[Site "Chess.com"]
[Date "2023.05.20"]
[Round "-"]
[White "luckywookie"]
[Black "CheckThis4"]
[Result "0-1"]
[WhiteElo "729"]
[BlackElo "2549"]
[TimeControl "300"]
[EndTime "11:09:56 PDT"]
[Termination "CheckThis4 won by checkmate"]

1. e4 {[%clk 0:04:58.9]} 1... d5 {[%clk 0:04:58.8]} 2. exd5 {[%clk 0:04:54.1]}
2... Nf6 {[%clk 0:04:57.5]} 3. Nc3 {[%clk 0:04:49.3]} 3... Nxd5 {[%clk
0:04:55.5]} 4. Nxd5 {[%clk 0:04:46.9]} 4... Qxd5 {[%clk 0:04:53.9]} 5. Nf3
{[%clk 0:04:43.4]} 5... Nc6 {[%clk 0:04:50.6]} 6. c3 {[%clk 0:04:41.6]} 6... Bg4
{[%clk 0:04:47.7]} 7. Be2 {[%clk 0:04:38.7]} 7... O-O-O {[%clk 0:04:43.3]} 8. d4
{[%clk 0:04:36.5]} 8... e5 {[%clk 0:04:30.2]} 9. c4 {[%clk 0:04:24.3]} 9... Qe4
{[%clk 0:04:12.1]} 10. d5 {[%clk 0:04:18.2]} 10... Bxf3 {[%clk 0:03:40.9]} 11.
gxf3 {[%clk 0:03:18.1]} 11... Qh4 {[%clk 0:03:38.6]} 12. Be3 {[%clk 0:03:09]}
12... Bb4+ {[%clk 0:03:36.7]} 13. Bd2 {[%clk 0:02:57.4]} 13... Bc5 {[%clk
0:03:35.1]} 14. Be3 {[%clk 0:02:55.1]} 14... Bxe3 {[%clk 0:03:33.3]} 15. Qb3
{[%clk 0:02:38.4]} 15... Qxf2+ {[%clk 0:03:28.7]} 16. Kd1 {[%clk 0:02:33.9]}
16... Nd4 {[%clk 0:03:27]} 17. Re1 {[%clk 0:02:23]} 17... Nxb3 {[%clk
0:03:24.9]} 18. axb3 {[%clk 0:02:20.5]} 18... Bf4 {[%clk 0:03:21.5]} 19. Rf1
{[%clk 0:02:13.9]} 19... Qe3 {[%clk 0:03:19.2]} 20. c5 {[%clk 0:01:56]} 20...
Qd2# {[%clk 0:03:15.8]} 0-1

[Event "Live Chess"]
[Site "Chess.com"]
[Date "2023.05.20"]
[Round "-"]
[White "jagbama"]
[Black "laki79"]
[Result "0-1"]
[WhiteElo "1138"]
[BlackElo "2303"]
[TimeControl "300"]
[EndTime "11:09:57 PDT"]
[Termination "laki79 won by resignation"]

1. e4 {[%clk 0:04:51.1]} 1... c5 {[%clk 0:04:58.3]} 2. Bc4 {[%clk 0:04:44.3]}
2... e6 {[%clk 0:04:56.4]} 3. Nc3 {[%clk 0:04:39.6]} 3... a6 {[%clk 0:04:55]} 4.
a4 {[%clk 0:04:38.3]} 4... Nc6 {[%clk 0:04:54]} 5. d3 {[%clk 0:04:30.7]} 5...
Nge7 {[%clk 0:04:51]} 6. Nf3 {[%clk 0:04:29.5]} 6... g6 {[%clk 0:04:48.6]} 7.
Be3 {[%clk 0:04:17.8]} 7... d5 {[%clk 0:04:46.4]} 8. exd5 {[%clk 0:04:11.4]}
8... exd5 {[%clk 0:04:46.3]} 9. Bxd5 {[%clk 0:03:52.3]} 9... Nxd5 {[%clk
0:04:43.9]} 10. Nxd5 {[%clk 0:03:49.7]} 10... Qxd5 {[%clk 0:04:42.7]} 11. O-O
{[%clk 0:03:41.4]} 11... Bg7 {[%clk 0:04:39.8]} 12. Re1 {[%clk 0:03:17.3]} 12...
O-O {[%clk 0:04:37.7]} 13. c4 {[%clk 0:03:08.9]} 13... Qd6 {[%clk 0:04:35.7]}
14. Rb1 {[%clk 0:02:59.2]} 14... b6 {[%clk 0:04:28.2]} 15. b3 {[%clk 0:02:42.5]}
15... Bb7 {[%clk 0:04:25.7]} 16. Re2 {[%clk 0:02:23.7]} 16... Rad8 {[%clk
0:04:23.1]} 17. Ng5 {[%clk 0:02:05.4]} 17... Qxd3 {[%clk 0:04:11.1]} 18. Rd2
{[%clk 0:02:01]} 18... Qf5 {[%clk 0:04:09.2]} 19. Rxd8 {[%clk 0:01:57.6]} 19...
Rxd8 {[%clk 0:04:07.1]} 20. Qc1 {[%clk 0:01:24.5]} 20... Nd4 {[%clk 0:04:03.8]}
21. Bxd4 {[%clk 0:01:19.4]} 21... Bxd4 {[%clk 0:04:01.7]} 22. Nf3 {[%clk
0:01:05.3]} 22... Bxf3 {[%clk 0:03:58.7]} 23. gxf3 {[%clk 0:01:02]} 23... Qxf3
{[%clk 0:03:57.8]} 24. Qg5 {[%clk 0:00:58.7]} 24... Bxf2+ {[%clk 0:03:47.6]} 25.
Kf1 {[%clk 0:00:45.6]} 25... Bg3+ {[%clk 0:03:42.8]} 26. Kg1 {[%clk 0:00:36]}
26... Qf2+ {[%clk 0:03:41]} 0-1

[Event "Live Chess"]
[Site "Chess.com"]
[Date "2023.05.20"]
[Round "-"]
[White "WilliamofOrange16th"]
[Black "smoggyrabbit"]
[Result "1-0"]
[WhiteElo "1882"]
[BlackElo "1620"]
[TimeControl "300"]
[EndTime "11:10:05 PDT"]
[Termination "WilliamofOrange16th won on time"]

1. b3 {[%clk 0:04:57.3]} 1... d5 {[%clk 0:04:56.1]} 2. Bb2 {[%clk 0:04:56.7]}
2... c5 {[%clk 0:04:53]} 3. e3 {[%clk 0:04:56]} 3... Nc6 {[%clk 0:04:51.6]} 4.
Bb5 {[%clk 0:04:54.8]} 4... e6 {[%clk 0:04:36.1]} 5. f4 {[%clk 0:04:51.9]} 5...
Bd7 {[%clk 0:04:22.1]} 6. Nf3 {[%clk 0:04:50.3]} 6... Nf6 {[%clk 0:04:15]} 7.
O-O {[%clk 0:04:47.5]} 7... Be7 {[%clk 0:04:09.2]} 8. d3 {[%clk 0:04:41.4]} 8...
O-O {[%clk 0:04:07.4]} 9. Nbd2 {[%clk 0:04:39.7]} 9... a6 {[%clk 0:02:41.8]} 10.
Bxc6 {[%clk 0:04:36.3]} 10... Bxc6 {[%clk 0:02:41.1]} 11. Ne5 {[%clk 0:04:35.6]}
11... Nd7 {[%clk 0:02:09.6]} 12. Nxc6 {[%clk 0:04:27]} 12... bxc6 {[%clk
0:02:09.5]} 13. Nf3 {[%clk 0:04:24.7]} 13... f6 {[%clk 0:02:02.4]} 14. c4 {[%clk
0:04:23.7]} 14... Qc7 {[%clk 0:01:52.4]} 15. Bc1 {[%clk 0:04:11.9]} 15... e5
{[%clk 0:01:48.5]} 16. f5 {[%clk 0:04:05.6]} 16... d4 {[%clk 0:01:21.2]} 17. e4
{[%clk 0:04:04.8]} 17... a5 {[%clk 0:01:13.3]} 18. Bd2 {[%clk 0:03:58.5]} 18...
Nb6 {[%clk 0:01:08.5]} 19. g4 {[%clk 0:03:57]} 19... a4 {[%clk 0:01:07.1]} 20.
Kh1 {[%clk 0:03:53.1]} 20... axb3 {[%clk 0:01:04]} 21. axb3 {[%clk 0:03:52.6]}
21... Rxa1 {[%clk 0:01:02.4]} 22. Qxa1 {[%clk 0:03:52.5]} 22... Ra8 {[%clk
0:01:01.3]} 23. Qb2 {[%clk 0:03:48.5]} 23... Qa7 {[%clk 0:00:52.9]} 24. g5
{[%clk 0:03:44.5]} 24... Qa3 {[%clk 0:00:46.5]} 25. Rb1 {[%clk 0:03:42.9]} 25...
Qxb2 {[%clk 0:00:26.3]} 26. Rxb2 {[%clk 0:03:42.8]} 26... Ra1+ {[%clk
0:00:24.5]} 27. Kg2 {[%clk 0:03:41.7]} 27... Nd7 {[%clk 0:00:15.4]} 28. gxf6
{[%clk 0:03:39.7]} 28... Bxf6 {[%clk 0:00:14.6]} 29. b4 {[%clk 0:03:33.4]} 29...
cxb4 {[%clk 0:00:13.3]} 30. Bxb4 {[%clk 0:03:32.2]} 30... Rd1 {[%clk 0:00:11.6]}
31. Rb3 {[%clk 0:03:16.8]} 31... c5 {[%clk 0:00:10.6]} 32. Bd2 {[%clk
0:03:08.3]} 32... Ra1 {[%clk 0:00:09.2]} 33. Rb7 {[%clk 0:03:06.3]} 33... Nf8
{[%clk 0:00:07.8]} 34. Rc7 {[%clk 0:02:53.9]} 34... Ra3 {[%clk 0:00:06.8]} 35.
Rxc5 {[%clk 0:02:49.7]} 35... Rxd3 {[%clk 0:00:05.9]} 36. Rc8 {[%clk 0:02:48.7]}
36... Ra3 {[%clk 0:00:04.7]} 37. Rxf8+ {[%clk 0:02:45.4]} 37... Kxf8 {[%clk
0:00:03.2]} 38. Bb4+ {[%clk 0:02:45]} 38... Be7 {[%clk 0:00:02.7]} 39. Bxa3
{[%clk 0:02:41.4]} 39... Bxa3 {[%clk 0:00:02.6]} 40. Nxe5 {[%clk 0:02:40.7]}
40... d3 {[%clk 0:00:02]} 41. Nxd3 {[%clk 0:02:39.9]} 41... Be7 {[%clk
0:00:00.3]} 42. c5 {[%clk 0:02:35.9]} 42... Bd8 {[%clk 0:00:00.2]} 43. e5 {[%clk
0:02:34.7]} 43... Bc7 {[%clk 0:00:00.1]} 44. Kf3 {[%clk 0:02:34]} 1-0

[Event "Live Chess"]
[Site "Chess.com"]
[Date "2023.05.20"]
[Round "-"]
[White "OceanFloater"]
[Black "Prijmak"]
[Result "0-1"]
[WhiteElo "979"]
[BlackElo "1054"]
[TimeControl "300"]
[EndTime "11:10:20 PDT"]
[Termination "Prijmak won by checkmate"]

1. e4 {[%clk 0:04:58.5]} 1... e5 {[%clk 0:04:58.5]} 2. Nf3 {[%clk 0:04:58]} 2...
Nc6 {[%clk 0:04:57]} 3. Bc4 {[%clk 0:04:57.2]} 3... h6 {[%clk 0:04:56.2]} 4. d4
{[%clk 0:04:55.1]} 4... exd4 {[%clk 0:04:54.2]} 5. Nxd4 {[%clk 0:04:54.5]} 5...
Bc5 {[%clk 0:04:48.6]} 6. Bxf7+ {[%clk 0:04:51.1]} 6... Kxf7 {[%clk 0:04:45.2]}
7. Qf3+ {[%clk 0:04:50.7]} 7... Nf6 {[%clk 0:04:43.4]} 8. Nf5 {[%clk 0:04:45.5]}
8... Ne5 {[%clk 0:04:39.1]} 9. Qb3+ {[%clk 0:04:30.5]} 9... d5 {[%clk
0:04:31.4]} 10. exd5 {[%clk 0:04:26.5]} 10... Qxd5 {[%clk 0:04:28.7]} 11. Nc3
{[%clk 0:04:23.2]} 11... Qxb3 {[%clk 0:04:26.2]} 12. axb3 {[%clk 0:04:19.4]}
12... Bxf5 {[%clk 0:04:24.6]} 13. Bf4 {[%clk 0:04:14]} 13... Rhe8 {[%clk
0:04:14.6]} 14. O-O {[%clk 0:04:10.5]} 14... Rac8 {[%clk 0:04:03.6]} 15. Ne2
{[%clk 0:04:05]} 15... Bxc2 {[%clk 0:04:00.1]} 16. Rac1 {[%clk 0:03:56.7]} 16...
Bxb3 {[%clk 0:03:40]} 17. Rxc5 {[%clk 0:03:55.2]} 17... Nc6 {[%clk 0:03:32.1]}
18. Rb5 {[%clk 0:03:47.7]} 18... Rxe2 {[%clk 0:03:16]} 19. Rxb3 {[%clk
0:03:44.4]} 19... Re4 {[%clk 0:03:11.1]} 20. Bg3 {[%clk 0:03:40.6]} 20... b6
{[%clk 0:03:01.7]} 21. Ra3 {[%clk 0:03:38.1]} 21... a5 {[%clk 0:03:00]} 22. Rc3
{[%clk 0:03:35.6]} 22... Re6 {[%clk 0:02:54.3]} 23. Rfc1 {[%clk 0:03:26.8]}
23... Nd5 {[%clk 0:02:51.1]} 24. Rf3+ {[%clk 0:03:23.9]} 24... Ke7 {[%clk
0:02:42.8]} 25. Rd1 {[%clk 0:03:12.8]} 25... Nf6 {[%clk 0:02:34.8]} 26. h3
{[%clk 0:03:07]} 26... Ne4 {[%clk 0:02:31.1]} 27. Bf4 {[%clk 0:02:56.6]} 27...
g5 {[%clk 0:02:29]} 28. Be3 {[%clk 0:02:53.2]} 28... Nf6 {[%clk 0:02:23.2]} 29.
h4 {[%clk 0:02:37.2]} 29... g4 {[%clk 0:02:14.5]} 30. Rf5 {[%clk 0:02:28.3]}
30... Re5 {[%clk 0:01:57.4]} 31. Rxe5+ {[%clk 0:02:19.6]} 31... Nxe5 {[%clk
0:01:55.8]} 32. Bxh6 {[%clk 0:02:18.4]} 32... Nc4 {[%clk 0:01:53]} 33. Bg5
{[%clk 0:02:15.1]} 33... Kf7 {[%clk 0:01:48]} 34. h5 {[%clk 0:02:09]} 34... Nxb2
{[%clk 0:01:43.4]} 35. Rd7+ {[%clk 0:02:06]} 35... Nxd7 {[%clk 0:01:39.1]} 36.
h6 {[%clk 0:02:01.6]} 36... Rg8 {[%clk 0:01:33.4]} 37. Bf4 {[%clk 0:01:59.8]}
37... c6 {[%clk 0:01:23.9]} 38. Kh2 {[%clk 0:01:57.8]} 38... Rh8 {[%clk
0:01:20.2]} 39. Kg3 {[%clk 0:01:55.8]} 39... Nf6 {[%clk 0:01:18.6]} 40. Kh4
{[%clk 0:01:52.8]} 40... b5 {[%clk 0:01:14.5]} 41. Kg5 {[%clk 0:01:51.3]} 41...
Nd5 {[%clk 0:01:08]} 42. Be5 {[%clk 0:01:46.6]} 42... Rg8+ {[%clk 0:01:02.1]}
43. Kf5 {[%clk 0:01:44.1]} 43... Nd3 {[%clk 0:00:54.4]} 44. h7 {[%clk
0:01:40.5]} 44... Re8 {[%clk 0:00:49.7]} 45. Bd4 {[%clk 0:01:28.8]} 45... c5
{[%clk 0:00:45.3]} 46. h8=Q {[%clk 0:01:21.9]} 46... Rxh8 {[%clk 0:00:41.7]} 47.
Bxh8 {[%clk 0:01:20.9]} 47... a4 {[%clk 0:00:40.1]} 48. Ke4 {[%clk 0:01:20.3]}
48... N3b4 {[%clk 0:00:37.1]} 49. f3 {[%clk 0:01:17.6]} 49... gxf3 {[%clk
0:00:34.9]} 50. gxf3 {[%clk 0:01:16.6]} 50... a3 {[%clk 0:00:33.6]} 51. f4
{[%clk 0:01:11]} 51... c4 {[%clk 0:00:32.3]} 52. Kd4 {[%clk 0:01:09]} 52... c3
{[%clk 0:00:29.5]} 53. Kc5 {[%clk 0:01:04.1]} 53... a2 {[%clk 0:00:26.8]} 54.
Bxc3 {[%clk 0:00:57.9]} 54... Nxc3 {[%clk 0:00:24]} 55. Kxb4 {[%clk 0:00:57.5]}
55... a1=Q {[%clk 0:00:22.4]} 56. Kc5 {[%clk 0:00:56.3]} 56... Qg1+ {[%clk
0:00:18.6]} 57. Kb4 {[%clk 0:00:55.3]} 57... Nd5+ {[%clk 0:00:16.2]} 58. Kb3
{[%clk 0:00:52.7]} 58... Qe3+ {[%clk 0:00:14.7]} 59. Kc2 {[%clk 0:00:51.1]}
59... Qc3+ {[%clk 0:00:12.2]} 60. Kb1 {[%clk 0:00:47.7]} 60... b4 {[%clk
0:00:11.2]} 61. Ka2 {[%clk 0:00:46.6]} 61... Qc2+ {[%clk 0:00:08.6]} 62. Ka1
{[%clk 0:00:44.8]} 62... b3 {[%clk 0:00:07.2]} 63. f5 {[%clk 0:00:43.6]} 63...
Qa2# {[%clk 0:00:05.2]} 0-1

[Event "Live Chess"]
[Site "Chess.com"]
[Date "2023.05.20"]
[Round "-"]
[White "PantherCal"]
[Black "EdenHazard8"]
[Result "1/2-1/2"]
[WhiteElo "1835"]
[BlackElo "2103"]
[TimeControl "300"]
[EndTime "11:10:34 PDT"]
[Termination "Game drawn - insufficient material"]

1. e4 {[%clk 0:04:51.9]} 1... e5 {[%clk 0:04:59.4]} 2. Nf3 {[%clk 0:04:50.6]}
2... Nc6 {[%clk 0:04:59]} 3. Bb5 {[%clk 0:04:49.6]} 3... a6 {[%clk 0:04:56.8]}
4. Bxc6 {[%clk 0:04:48.2]} 4... dxc6 {[%clk 0:04:54.4]} 5. d4 {[%clk 0:04:47.4]}
5... exd4 {[%clk 0:04:53.3]} 6. Qxd4 {[%clk 0:04:46.7]} 6... Qxd4 {[%clk
0:04:51]} 7. Nxd4 {[%clk 0:04:46.6]} 7... Bc5 {[%clk 0:04:50.2]} 8. Nf5 {[%clk
0:04:44.7]} 8... Bxf5 {[%clk 0:04:49.4]} 9. exf5 {[%clk 0:04:43.5]} 9... O-O-O
{[%clk 0:04:48.9]} 10. O-O {[%clk 0:04:40]} 10... Nf6 {[%clk 0:04:47.8]} 11. Nc3
{[%clk 0:04:37.3]} 11... Rhe8 {[%clk 0:04:44.4]} 12. Bf4 {[%clk 0:04:35.4]}
12... Ne4 {[%clk 0:04:39.5]} 13. Bg3 {[%clk 0:04:28]} 13... Nxg3 {[%clk
0:04:35.1]} 14. hxg3 {[%clk 0:04:27.9]} 14... Rd2 {[%clk 0:04:33.9]} 15. Rac1
{[%clk 0:04:26.8]} 15... Re5 {[%clk 0:04:24.7]} 16. Rfd1 {[%clk 0:04:23.4]}
16... Rxd1+ {[%clk 0:04:23.2]} 17. Rxd1 {[%clk 0:04:19.3]} 17... Rxf5 {[%clk
0:04:22.9]} 18. Rd2 {[%clk 0:04:12.6]} 18... Re5 {[%clk 0:04:19.5]} 19. Kf1
{[%clk 0:04:11.5]} 19... b6 {[%clk 0:04:12.2]} 20. Ne2 {[%clk 0:04:04.8]} 20...
Kb7 {[%clk 0:04:09.4]} 21. c3 {[%clk 0:04:01.7]} 21... Bd6 {[%clk 0:04:06.1]}
22. Nd4 {[%clk 0:03:59]} 22... c5 {[%clk 0:04:02.2]} 23. Nf3 {[%clk 0:03:57.5]}
23... Re7 {[%clk 0:03:59.7]} 24. Ng5 {[%clk 0:03:55.8]} 24... h6 {[%clk
0:03:57.5]} 25. Nf3 {[%clk 0:03:49.6]} 25... Kc6 {[%clk 0:03:56.4]} 26. b3
{[%clk 0:03:45.8]} 26... g5 {[%clk 0:03:53.5]} 27. c4 {[%clk 0:03:42]} 27... g4
{[%clk 0:03:48.8]} 28. Nh4 {[%clk 0:03:39.7]} 28... Be5 {[%clk 0:03:47.7]} 29.
Nf5 {[%clk 0:03:37.1]} 29... Re6 {[%clk 0:03:44.9]} 30. Ne3 {[%clk 0:03:34.2]}
30... h5 {[%clk 0:03:42]} 31. Nd5 {[%clk 0:03:30.7]} 31... b5 {[%clk 0:03:35.7]}
32. Re2 {[%clk 0:03:25.8]} 32... Bd4 {[%clk 0:03:23]} 33. Rxe6+ {[%clk
0:03:20.5]} 33... fxe6 {[%clk 0:03:22.9]} 34. Nf4 {[%clk 0:03:20.2]} 34... bxc4
{[%clk 0:03:20]} 35. bxc4 {[%clk 0:03:20.1]} 35... Kb6 {[%clk 0:03:16.8]} 36.
Nxe6 {[%clk 0:03:18.2]} 36... Ka5 {[%clk 0:03:15.4]} 37. Nxc7 {[%clk 0:03:06.7]}
37... Kb4 {[%clk 0:03:11.9]} 38. Nxa6+ {[%clk 0:03:05.5]} 38... Kxc4 {[%clk
0:03:11.5]} 39. Ke2 {[%clk 0:03:04]} 39... Kc3 {[%clk 0:03:10.6]} 40. f4 {[%clk
0:03:02.8]} 40... Kb2 {[%clk 0:03:08.8]} 41. a4 {[%clk 0:02:59.6]} 41... c4
{[%clk 0:03:08]} 42. Nb4 {[%clk 0:02:55.5]} 42... Bc5 {[%clk 0:03:02.3]} 43. Nd5
{[%clk 0:02:51.2]} 43... c3 {[%clk 0:03:00]} 44. Nxc3 {[%clk 0:02:19.7]} 44...
Kxc3 {[%clk 0:02:59.9]} 45. a5 {[%clk 0:02:18.6]} 45... Kb4 {[%clk 0:02:58.2]}
46. a6 {[%clk 0:02:17.8]} 46... Kb5 {[%clk 0:02:57.7]} 47. f5 {[%clk 0:02:17.2]}
47... Kxa6 {[%clk 0:02:56.3]} 48. Kd3 {[%clk 0:02:16.7]} 48... Kb6 {[%clk
0:02:21.6]} 49. Ke4 {[%clk 0:02:16.6]} 49... Kc6 {[%clk 0:02:20.1]} 50. Ke5
{[%clk 0:02:12.8]} 50... Kd7 {[%clk 0:02:17.6]} 51. Kf6 {[%clk 0:02:11.2]} 51...
Ke8 {[%clk 0:02:15.4]} 52. Kg6 {[%clk 0:02:09]} 52... Bf2 {[%clk 0:02:04.8]} 53.
Kxh5 {[%clk 0:02:04.3]} 53... Bxg3 {[%clk 0:02:03.9]} 54. Kxg4 {[%clk
0:02:03.6]} 54... Be1 {[%clk 0:02:02.8]} 55. Kg5 {[%clk 0:02:01.5]} 55... Kf7
{[%clk 0:02:02.1]} 56. Kf4 {[%clk 0:01:54.6]} 56... Kf6 {[%clk 0:02:01.1]} 57.
g4 {[%clk 0:01:53.3]} 57... Bd2+ {[%clk 0:02:00.7]} 58. Ke4 {[%clk 0:01:43.8]}
58... Kg5 {[%clk 0:02:00]} 59. Ke5 {[%clk 0:01:41.8]} 59... Kxg4 {[%clk
0:01:58.5]} 60. f6 {[%clk 0:01:41.2]} 60... Bc3+ {[%clk 0:01:58.2]} 61. Ke6
{[%clk 0:01:40.4]} 61... Bxf6 {[%clk 0:01:58.1]} 1/2-1/2

[Event "Live Chess"]
[Site "Chess.com"]
[Date "2023.05.20"]
[Round "-"]
[White "HD_IN4k"]
[Black "ACx04"]
[Result "1-0"]
[WhiteElo "391"]
[BlackElo "402"]
[TimeControl "300"]
[EndTime "11:10:39 PDT"]
[Termination "HD_IN4k won by checkmate"]

1. d4 {[%clk 0:04:54.7]} 1... d5 {[%clk 0:04:56.4]} 2. c4 {[%clk 0:04:53.1]}
2... dxc4 {[%clk 0:04:54.5]} 3. e4 {[%clk 0:04:51.4]} 3... Nc6 {[%clk
0:04:51.6]} 4. Nf3 {[%clk 0:04:41.4]} 4... Nxd4 {[%clk 0:04:49.7]} 5. Nxd4
{[%clk 0:04:39]} 5... c5 {[%clk 0:04:48.6]} 6. Nf3 {[%clk 0:04:30.6]} 6... Nf6
{[%clk 0:04:41.2]} 7. Qa4+ {[%clk 0:04:23.9]} 7... Bd7 {[%clk 0:04:37.7]} 8.
Qxc4 {[%clk 0:04:22.7]} 8... e6 {[%clk 0:04:34.9]} 9. Ne5 {[%clk 0:04:09.5]}
9... Bc6 {[%clk 0:04:20.1]} 10. Nxc6 {[%clk 0:04:03]} 10... bxc6 {[%clk
0:04:18.8]} 11. Be3 {[%clk 0:03:49.8]} 11... Qb6 {[%clk 0:04:15.8]} 12. b3
{[%clk 0:03:39.6]} 12... a5 {[%clk 0:04:13.9]} 13. Be2 {[%clk 0:03:31]} 13... g6
{[%clk 0:04:09.7]} 14. Nd2 {[%clk 0:03:23.9]} 14... O-O-O {[%clk 0:04:03.3]} 15.
Rd1 {[%clk 0:03:04.2]} 15... h5 {[%clk 0:03:47.6]} 16. O-O {[%clk 0:02:57.2]}
16... Bd6 {[%clk 0:03:37.2]} 17. Nf3 {[%clk 0:02:46.3]} 17... Qb4 {[%clk
0:03:30]} 18. Qa6+ {[%clk 0:02:36.6]} 18... Kd7 {[%clk 0:03:26.9]} 19. e5 {[%clk
0:02:30.9]} 19... Ne8 {[%clk 0:03:13.4]} 20. Qa7+ {[%clk 0:02:10.2]} 20... Nc7
{[%clk 0:03:03.9]} 21. Rxd6+ {[%clk 0:02:05.5]} 21... Ke7 {[%clk 0:03:00]} 22.
Qxc7+ {[%clk 0:02:01.8]} 22... Rd7 {[%clk 0:02:56.3]} 23. Qxd7+ {[%clk
0:01:58.1]} 23... Kf8 {[%clk 0:02:49.6]} 24. Qd8+ {[%clk 0:01:52.6]} 24... Kg7
{[%clk 0:02:47.3]} 25. Qf6+ {[%clk 0:01:38]} 25... Kg8 {[%clk 0:02:41.8]} 26.
Rd8+ {[%clk 0:01:34.8]} 26... Kh7 {[%clk 0:02:38.2]} 27. Qxh8# {[%clk
0:01:26.7]} 1-0

[Event "Live Chess"]
[Site "Chess.com"]
[Date "2023.05.20"]
[Round "-"]
[White "Driftboard"]
[Black "ranvir123"]
[Result "0-1"]
[WhiteElo "678"]
[BlackElo "889"]
[TimeControl "300"]
[EndTime "11:10:39 PDT"]
[Termination "ranvir123 won by checkmate"]

1. e4 {[%clk 0:04:58.5]} 1... e5 {[%clk 0:04:59.4]} 2. Nf3 {[%clk 0:04:57.2]}
2... Nc6 {[%clk 0:04:58.7]} 3. Nc3 {[%clk 0:04:56.3]} 3... Bc5 {[%clk
0:04:56.8]} 4. Bb5 {[%clk 0:04:55.4]} 4... d6 {[%clk 0:04:55.3]} 5. O-O {[%clk
0:04:54.3]} 5... Bg4 {[%clk 0:04:53.4]} 6. d3 {[%clk 0:04:53.2]} 6... Nf6 {[%clk
0:04:52.5]} 7. h3 {[%clk 0:04:52.1]} 7... Bh5 {[%clk 0:04:50.8]} 8. Bxc6+ {[%clk
0:04:50.7]} 8... bxc6 {[%clk 0:04:49.2]} 9. Re1 {[%clk 0:04:48.4]} 9... d5
{[%clk 0:04:46.9]} 10. Be3 {[%clk 0:04:44.3]} 10... Bxe3 {[%clk 0:04:45.5]} 11.
fxe3 {[%clk 0:04:40.9]} 11... dxe4 {[%clk 0:04:42.5]} 12. dxe4 {[%clk
0:04:37.5]} 12... O-O {[%clk 0:04:37]} 13. Qxd8 {[%clk 0:04:32.5]} 13... Rfxd8
{[%clk 0:04:33.8]} 14. Rad1 {[%clk 0:04:30.4]} 14... Bxf3 {[%clk 0:04:29.8]} 15.
gxf3 {[%clk 0:04:28]} 15... Rd6 {[%clk 0:04:19]} 16. f4 {[%clk 0:04:23.1]} 16...
exf4 {[%clk 0:04:16.1]} 17. exf4 {[%clk 0:04:22]} 17... Rad8 {[%clk 0:04:14.2]}
18. e5 {[%clk 0:04:19.1]} 18... Rxd1 {[%clk 0:04:08.3]} 19. Rxd1 {[%clk
0:04:12.5]} 19... Rxd1+ {[%clk 0:04:05.7]} 20. Kg2 {[%clk 0:04:10.6]} 20... Rd2+
{[%clk 0:04:02.2]} 21. Kf3 {[%clk 0:04:07.8]} 21... Nd5 {[%clk 0:03:58.9]} 22.
Nxd5 {[%clk 0:04:05.6]} 22... cxd5 {[%clk 0:03:57.6]} 23. Ke3 {[%clk 0:04:05]}
23... Rxc2 {[%clk 0:03:56.8]} 24. Kd4 {[%clk 0:04:04.1]} 24... Rxb2 {[%clk
0:03:56.1]} 25. Kxd5 {[%clk 0:04:03.5]} 25... Rxa2 {[%clk 0:03:55.6]} 26. Kc6
{[%clk 0:04:02.9]} 26... Rh2 {[%clk 0:03:54.2]} 27. Kxc7 {[%clk 0:04:02.3]}
27... Rxh3 {[%clk 0:03:53.6]} 28. Kb7 {[%clk 0:04:01.1]} 28... Rf3 {[%clk
0:03:53.2]} 29. Kxa7 {[%clk 0:04:00.4]} 29... Rxf4 {[%clk 0:03:52.5]} 30. Kb7
{[%clk 0:04:00.3]} 30... Re4 {[%clk 0:03:51.6]} 31. Kc6 {[%clk 0:04:00.1]} 31...
Rxe5 {[%clk 0:03:49.4]} 32. Kd6 {[%clk 0:03:59.7]} 32... Re6+ {[%clk 0:03:47.4]}
33. Kd5 {[%clk 0:03:58.5]} 33... Re1 {[%clk 0:03:46.3]} 34. Kd4 {[%clk
0:03:57.6]} 34... f5 {[%clk 0:03:45.9]} 35. Kd3 {[%clk 0:03:56.6]} 35... f4
{[%clk 0:03:45.8]} 36. Kd2 {[%clk 0:03:55.7]} 36... f3 {[%clk 0:03:45.7]} 37.
Kxe1 {[%clk 0:03:54.6]} 37... f2+ {[%clk 0:03:45.6]} 38. Kxf2 {[%clk 0:03:53.7]}
38... Kf7 {[%clk 0:03:44.1]} 39. Kg3 {[%clk 0:03:52.8]} 39... Kf6 {[%clk
0:03:43.6]} 40. Kg4 {[%clk 0:03:52.2]} 40... g6 {[%clk 0:03:41.6]} 41. Kh4
{[%clk 0:03:51]} 41... h5 {[%clk 0:03:39.5]} 42. Kg3 {[%clk 0:03:49.1]} 42...
Kg5 {[%clk 0:03:38.8]} 43. Kh3 {[%clk 0:03:48]} 43... Kf4 {[%clk 0:03:36.7]} 44.
Kh4 {[%clk 0:03:46.7]} 44... g5+ {[%clk 0:03:35]} 45. Kxh5 {[%clk 0:03:45.5]}
45... g4 {[%clk 0:03:34.4]} 46. Kh4 {[%clk 0:03:44.8]} 46... Kf3 {[%clk
0:03:32.5]} 47. Kg5 {[%clk 0:03:41.1]} 47... g3 {[%clk 0:03:31.9]} 48. Kh4
{[%clk 0:03:39.6]} 48... g2 {[%clk 0:03:31.8]} 49. Kh3 {[%clk 0:03:38.8]} 49...
g1=Q {[%clk 0:03:30.8]} 50. Kh4 {[%clk 0:03:38.2]} 50... Qg4# {[%clk 0:03:28.4]}
0-1

[Event "Live Chess"]
[Site "Chess.com"]
[Date "2023.05.20"]
[Round "-"]
[White "kerryman1969"]
[Black "ViktorTheCoolBoy"]
[Result "0-1"]
[WhiteElo "1146"]
[BlackElo "2543"]
[TimeControl "300"]
[EndTime "11:10:45 PDT"]
[Termination "ViktorTheCoolBoy won by checkmate"]

1. d4 {[%clk 0:04:54]} 1... Nf6 {[%clk 0:04:57.6]} 2. g3 {[%clk 0:04:50.1]} 2...
d5 {[%clk 0:04:51.8]} 3. Bg2 {[%clk 0:04:45.9]} 3... Bf5 {[%clk 0:04:50.3]} 4.
c3 {[%clk 0:04:41.5]} 4... c6 {[%clk 0:04:48.9]} 5. Nf3 {[%clk 0:04:37.4]} 5...
h6 {[%clk 0:04:47.5]} 6. Bf4 {[%clk 0:04:32.5]} 6... e6 {[%clk 0:04:45.4]} 7.
Nbd2 {[%clk 0:04:27.1]} 7... Be7 {[%clk 0:04:39.7]} 8. O-O {[%clk 0:03:59.3]}
8... O-O {[%clk 0:04:37.9]} 9. Re1 {[%clk 0:03:55.9]} 9... Nbd7 {[%clk 0:04:34]}
10. e4 {[%clk 0:03:52.1]} 10... Nxe4 {[%clk 0:04:31.7]} 11. Nxe4 {[%clk
0:03:48.5]} 11... Bxe4 {[%clk 0:04:30.7]} 12. Ne5 {[%clk 0:03:43.3]} 12... Bxg2
{[%clk 0:04:29]} 13. Nxd7 {[%clk 0:03:37.9]} 13... Qxd7 {[%clk 0:04:23]} 14.
Kxg2 {[%clk 0:03:33.8]} 14... Bd6 {[%clk 0:04:21.7]} 15. Bxd6 {[%clk 0:03:29.7]}
15... Qxd6 {[%clk 0:04:20.7]} 16. f4 {[%clk 0:03:26.3]} 16... c5 {[%clk
0:04:18.9]} 17. dxc5 {[%clk 0:03:19.1]} 17... Qxc5 {[%clk 0:04:17.6]} 18. Re5
{[%clk 0:03:15.6]} 18... Qb6 {[%clk 0:04:14.4]} 19. Qb3 {[%clk 0:03:10.5]} 19...
Rfd8 {[%clk 0:04:09.9]} 20. Qxb6 {[%clk 0:03:06.1]} 20... axb6 {[%clk
0:04:09.6]} 21. a3 {[%clk 0:03:02.4]} 21... d4 {[%clk 0:04:08.8]} 22. cxd4
{[%clk 0:02:57]} 22... Rxd4 {[%clk 0:04:08.7]} 23. Rc1 {[%clk 0:02:54.1]} 23...
Rd2+ {[%clk 0:04:06.3]} 24. Kh3 {[%clk 0:02:49.4]} 24... Rxb2 {[%clk 0:04:05.3]}
25. Rc7 {[%clk 0:02:44.7]} 25... Rxa3 {[%clk 0:04:03.1]} 26. Rxb7 {[%clk
0:02:41.9]} 26... Raa2 {[%clk 0:04:02.3]} 27. Kg4 {[%clk 0:02:29.8]} 27... Rxh2
{[%clk 0:03:58.1]} 28. Rb8+ {[%clk 0:02:25.2]} 28... Kh7 {[%clk 0:03:56.7]} 29.
Rxb6 {[%clk 0:02:22.9]} 29... Raf2 {[%clk 0:03:47.2]} 30. Ra5 {[%clk 0:02:18.4]}
30... g6 {[%clk 0:03:44]} 31. Rb7 {[%clk 0:02:15.1]} 31... g5 {[%clk 0:03:25.9]}
32. Rxf7+ {[%clk 0:02:07.7]} 32... Kg6 {[%clk 0:03:24.4]} 33. Raa7 {[%clk
0:02:03.2]} 33... h5# {[%clk 0:03:23]} 0-1